fUSD/lending_fUSD_20260421
["ID","MTS","AMOUNT","RATE_DAILY","PERIOD"]
[420946157,1776780632903,-208.32999,0.0001078,2]
[420946159,1776780632914,-256.659981,0.0001078,2]
[420946161,1776780632923,-160.0,0.0001078,2]
[420946163,1776780632933,-575.608691,0.0001078,2]
[420946165,1776780632942,-991.217383,0.0001078,2]
[420946167,1776780632951,-160.0,0.0001078,2]
[420946168,1776780632961,-730.895185,0.0001078,2]
[420946170,1776780632970,-1301.790371,0.0001078,2]
[420946172,1776780632980,-297.07656,0.0001079,2]
[420946174,1776780632989,-297.07656,0.0001079,2]
[420946176,1776780632999,-297.07656,0.0001079,2]
[420946178,1776780633008,-297.07657,0.0001079,2]
[420946179,1776780633018,-156.0,0.000108,2]
[420946181,1776780633028,-156.0,0.000108,2]
[420946182,1776780633038,-219.0,0.000108,5]
[420946184,1776780633048,-538.0,0.000108,5]
[420946186,1776780633057,-421.04256851,0.000108,2]
[420946188,1776780633067,-6031.0,0.00010804,2]
[420946189,1776780633076,-3780.0,0.00010804,2]
[420946190,1776780633086,-1600.0,0.00010809,2]
[420946191,1776780633096,-451.94,0.00010822,2]
[420946192,1776780633106,-451.97833021,0.00010825,2]
[420946193,1776780633120,-174.61919142,0.0001084,2]
[420946194,1776780633130,-250.0,0.00010849,2]
[420946195,1776780633139,-352.92,0.00010849,2]
[420946196,1776780633149,-300.28,0.00010849,2]
[420946197,1776780633159,-183.38,0.0001089,2]
[420946198,1776780633168,-161.0,0.0001089,2]
[420946199,1776780633178,-161.0,0.0001089,2]
[420946200,1776780633187,-260.0,0.00010899,2]
[420946201,1776780633197,-260.0,0.00010899,2]
[420946202,1776780633206,-380.4189488,0.00010899,2]
[420946203,1776780633216,-726690.33157855,0.000109,2]
[420946204,1776780633229,-1306.980303,0.000109,2]
[420946218,1776780637921,-1042.80163452,0.00010704,2]
[420946219,1776780637933,-1439315.5499916,0.000109,2]
[420946220,1776780638086,-2438.15312271,0.000109,2]
[420946221,1776780638189,-75887.62771607,0.000109,2]
[420946223,1776780638201,-48993.48432967,0.000109,2]
[420946225,1776780638213,-1826.1386616,0.000109,2]
[420947035,1776780646103,-3030.72,9.9e-05,2]
[420947047,1776780646206,-3187.6617978,9.9e-05,2]
[420947049,1776780646217,-2437.34547663,9.9e-05,2]
[420947051,1776780646233,-36125.26442557,9.9e-05,2]
[420947053,1776780646242,-695.20108968,0.00010704,2]
[420947055,1776780646252,-160.0,0.0001078,2]
[420947057,1776780646261,-658.101893,0.0001078,2]
[420947059,1776780646270,-1156.203786,0.0001078,2]
[420947061,1776780646280,-417818.40765661,0.000109,2]
[420947283,1776781833955,-300.0,8.299e-05,2]
[420947284,1776781833966,-242.29011704,8.299e-05,2]
[420947285,1776781833977,-564.7593,8.299e-05,2]
[420947286,1776781833989,-392.95058296,8.299e-05,2]
[420947287,1776781833998,-150.0,8.299e-05,2]
[420947288,1776781834007,-687.9720545,8.299e-05,2]
[420947289,1776781834018,-687.9720545,8.299e-05,2]
[420947290,1776781834028,-687.9720545,8.299e-05,2]
[420947291,1776781834038,-687.9720545,8.299e-05,2]
[420947292,1776781834047,-687.9720545,8.299e-05,2]
[420947293,1776781834057,-687.9720545,8.299e-05,2]
[420947294,1776781834066,-687.9720545,8.299e-05,2]
[420947295,1776781834076,-687.9720545,8.299e-05,2]
[420947296,1776781834086,-687.9720545,8.299e-05,2]
[420947297,1776781834095,-687.9720545,8.299e-05,2]
[420947298,1776781834104,-687.9720545,8.299e-05,2]
[420947299,1776781834114,-687.9720545,8.299e-05,2]
[420947300,1776781834124,-687.9720545,8.299e-05,2]
[420947301,1776781834135,-687.9720545,8.299e-05,2]
[420947302,1776781834144,-687.9720545,8.299e-05,2]
[420947303,1776781834154,-687.9720545,8.299e-05,2]
[420947304,1776781834164,-687.9720545,8.299e-05,2]
[420947305,1776781834173,-687.9720545,8.299e-05,2]
[420947306,1776781834182,-687.9720545,8.299e-05,2]
[420947307,1776781834191,-687.9720545,8.299e-05,2]
[420947308,1776781834201,-633.66645326,8.299e-05,2]
[420947309,1776781834213,-54.30560124,8.299e-05,2]
[420947310,1776781834223,-687.9720545,8.299e-05,2]
[420947311,1776781834232,-76.90166116,8.299e-05,2]
[420947312,1776781834244,-611.07039334,8.299e-05,2]
[420947313,1776781834254,-687.9720545,8.299e-05,2]
[420947314,1776781834263,-687.9720545,8.299e-05,2]
[420947315,1776781834273,-687.9720545,8.299e-05,2]
[420947316,1776781834282,-687.9720545,8.299e-05,2]
[420947317,1776781834291,-687.9720545,8.299e-05,2]
[420947318,1776781834301,-687.9720545,8.299e-05,2]
[420947319,1776781834311,-687.9720545,8.299e-05,2]
[420947320,1776781834320,-687.9720545,8.299e-05,2]
[420947321,1776781834330,-687.9720545,8.299e-05,2]
[420947322,1776781834340,-687.9720545,8.299e-05,2]
[420947323,1776781834350,-687.9720545,8.299e-05,2]
[420947324,1776781834360,-687.9720545,8.299e-05,2]
[420947325,1776781834369,-687.9720545,8.299e-05,2]
[420947326,1776781834379,-690.61810087,8.299e-05,2]
[420947327,1776781834388,-690.61810087,8.299e-05,2]
[420947328,1776781834398,-690.61810087,8.299e-05,2]
[420947329,1776781834407,-690.61810087,8.299e-05,2]
[420947330,1776781834416,-690.61810087,8.299e-05,2]
[420947331,1776781834426,-690.61810087,8.299e-05,2]
[420947332,1776781834435,-690.61810087,8.299e-05,2]
[420947333,1776781834445,-690.61810087,8.299e-05,2]
[420947334,1776781834455,-690.61810087,8.299e-05,2]
[420947335,1776781834464,-690.61810087,8.299e-05,2]
[420947336,1776781834473,-690.61810087,8.299e-05,2]
[420947337,1776781834483,-690.61810087,8.299e-05,2]
[420947338,1776781834493,-690.61810087,8.299e-05,2]
[420947339,1776781834502,-690.61810087,8.299e-05,2]
[420947340,1776781834512,-690.61810087,8.299e-05,2]
[420947341,1776781834521,-690.61810087,8.299e-05,2]
[420947342,1776781834531,-690.61810087,8.299e-05,2]
[420947343,1776781834540,-690.61810087,8.299e-05,2]
[420947344,1776781834550,-690.61810087,8.299e-05,2]
[420947345,1776781834560,-690.61810087,8.299e-05,2]
[420947346,1776781834569,-690.61810087,8.299e-05,2]
[420947347,1776781834578,-690.61810087,8.299e-05,2]
[420947348,1776781834588,-690.61810087,8.299e-05,2]
[420947349,1776781834597,-690.61810087,8.299e-05,2]
[420947350,1776781834607,-690.61810087,8.299e-05,2]
[420947351,1776781834616,-690.61810087,8.299e-05,2]
[420947352,1776781834625,-690.61810087,8.299e-05,2]
[420947353,1776781834634,-690.61810087,8.299e-05,2]
[420947354,1776781834643,-690.61810087,8.299e-05,2]
[420947355,1776781834653,-690.61810087,8.299e-05,2]
[420947356,1776781834662,-690.61810087,8.299e-05,2]
[420947357,1776781834671,-690.61810087,8.299e-05,2]
[420947358,1776781834681,-690.61810087,8.299e-05,2]
[420947359,1776781834690,-690.61810087,8.299e-05,2]
[420947360,1776781834700,-690.61810087,8.299e-05,2]
[420947361,1776781834710,-690.61810087,8.299e-05,2]
[420947362,1776781834719,-690.61810087,8.299e-05,2]
[420947363,1776781834729,-250.0,8.3e-05,2]
[420947364,1776781834738,-179.48,8.3e-05,2]
[420947365,1776781834747,-191867.03225087,8.3e-05,2]
[420947366,1776781834759,-35843.2472012,8.3e-05,2]
[420947367,1776781834771,-78367.52975794,8.3e-05,2]
[420947368,1776781834780,-258.0,8.3e-05,2]
[420947369,1776781834790,-500.0,8.32e-05,2]
[420947370,1776781834800,-653.90705812,8.341e-05,2]
[420947371,1776781834809,-500.0,8.46e-05,2]
[420947372,1776781834819,-500.0,8.46e-05,2]
[420947373,1776781834828,-500.0,8.46e-05,2]
[420947374,1776781834838,-1852.42,8.758e-05,2]
[420947375,1776781834847,-1117.0,8.779e-05,2]
[420947376,1776781834857,-1391.54,8.84e-05,2]
[420947377,1776781834866,-9483.12954962,8.84e-05,2]
[420947378,1776781834878,-129.94045038,8.84e-05,2]
[420947379,1776781834887,-237.64474982,9.064e-05,2]
[420947380,1776781834906,-805.848,9.064e-05,2]
[420947381,1776781834917,-4347.54183105,9.064e-05,2]
[420947382,1776781834932,-700.41541913,9.064e-05,2]
[420947383,1776781834941,-2645.31648015,9.129e-05,2]
[420947384,1776781834951,-250.0,9.129e-05,2]
[420947385,1776781834960,-420.0,9.129e-05,2]
[420947386,1776781834970,-1680.0,9.129e-05,2]
[420947387,1776781834979,-255.0,9.129e-05,2]
[420947388,1776781834988,-500.0,9.13e-05,2]
[420947389,1776781834998,-300.0,9.175e-05,2]
[420947390,1776781835440,-250.0,9.175e-05,2]
[420947391,1776781835451,-1117.0,9.242e-05,2]
[420947392,1776781835460,-3467.26810088,9.355e-05,2]
[420947393,1776781835472,-2074.64189912,9.355e-05,2]
[420947394,1776781835481,-200.0,9.355e-05,2]
[420947395,1776781835491,-478.0,9.382e-05,2]
[420947396,1776781835500,-289.0,9.382e-05,2]
[420947397,1776781835510,-500.0,9.643e-05,2]
[420947398,1776781835519,-500.0,9.643e-05,2]
[420947399,1776781835529,-272.36368211,9.652e-05,2]
[420947400,1776781835539,-290.85,9.668e-05,2]
[420947401,1776781835549,-500.0,9.669e-05,2]
[420947402,1776781835558,-500.0,9.669e-05,2]
[420947403,1776781835568,-500.0,9.669e-05,2]
[420947404,1776781835578,-500.0,9.669e-05,2]
[420947405,1776781835588,-500.0,9.669e-05,2]
[420947406,1776781835597,-586.15465698,9.669e-05,2]
[420947407,1776781835608,-396.21322189,9.669e-05,2]
[420947408,1776781835619,-6511.52,9.67e-05,2]
[420947409,1776781835628,-7185.12,9.67e-05,2]
[420947410,1776781835638,-7949.01,9.67e-05,2]
[420947411,1776781835648,-150.99,9.67e-05,2]
[420947412,1776781835657,-299.99,9.67e-05,2]
[420947413,1776781835667,-8110.9404002,9.67e-05,2]
[420947416,1776781838149,-500.0,9.669e-05,2]
[420947417,1776781838160,-210.81877204,9.669e-05,2]
[420947418,1776781838170,-500.0,9.669e-05,2]
[420947419,1776781838180,-500.0,9.669e-05,2]
[420947420,1776781838190,-500.0,9.669e-05,2]
[420947421,1776781838200,-1889.0495998,9.67e-05,2]
[420947422,1776781838209,-2602.71,9.67e-05,2]
[420947423,1776781838219,-24770.62,9.67e-05,2]
[420947424,1776781838228,-105677.87,9.67e-05,2]
[420947425,1776781838238,-8996.36886067,9.67e-05,2]
[420947426,1776781838267,-1003.62113933,9.67e-05,2]
[420947427,1776781838277,-542.86,9.67e-05,2]
[420947428,1776781838287,-999.99,9.67e-05,2]
[420947429,1776781838297,-2591.0,9.67e-05,2]
[420947430,1776781838307,-1117.0,9.728e-05,2]
[420947431,1776781838317,-1001.76893914,9.779e-05,2]
[420947432,1776781838327,-251.61,9.827e-05,2]
[420947433,1776781838337,-1840.5,9.842e-05,2]
[420947434,1776781838347,-260.0,9.863e-05,2]
[420947435,1776781838356,-290.85,9.942e-05,2]
[420947436,1776781838366,-11.20873349,0.0001,2]
[420947437,1776781838378,-1013.0,0.0001,2]
[420947438,1776781838404,-500.0,8.84e-05,2]
[420947439,1776781838413,-1140.14126651,0.0001,2]
[420947440,1776781838423,-604.91,0.0001,2]
[420947441,1776781838432,-1666.72,0.0001,2]
[420947442,1776781838441,-1965.37,0.0001,2]
[420947443,1776781838451,-1600.33,0.0001,2]
[420947444,1776781838460,-500.0,0.00010007,2]
[420947445,1776781838470,-500.0,0.00010007,2]
[420947446,1776781838479,-500.0,0.00010007,2]
[420947447,1776781838488,-500.0,0.00010007,2]
[420947448,1776781838498,-324.58914921,0.00010007,2]
[420947449,1776781838507,-1386.78395259,0.00010007,2]
[420947450,1776781838516,-8039.65,0.00010013,2]
[420947451,1776781838525,-2437.3455,0.00010021,2]
[420947452,1776781838534,-54221.78784776,0.00010021,2]
[420947453,1776781838546,-4471.29985224,0.00010021,2]
[420947454,1776781838556,-2500.0,0.00010022,2]
[420947455,1776781838565,-500.0,0.00010031,2]
[420947456,1776781838574,-587.0,0.00010042,2]
[420947457,1776781838583,-242.0,0.00010042,2]
[420947458,1776781838592,-348.0,0.00010042,2]
[420947459,1776781838602,-151.0,0.00010119,2]
[420947460,1776781838614,-1500.0,0.00010122,2]
[420947461,1776781838623,-600.66693451,0.00010123,2]
[420947462,1776781838632,-522.06145725,0.00010191,2]
[420947463,1776781838641,-290.86,0.00010216,2]
[420947464,1776781838651,-1117.0,0.0001024,2]
[420947465,1776781838660,-578.20924308,0.00010293,2]
[420947466,1776781838669,-721.12765535,0.00010293,2]
[420947467,1776781838679,-1428.38747117,0.00010293,2]
[420947468,1776781838688,-176.82638054,0.00010293,2]
[420947469,1776781838698,-174.61919141,0.00010293,2]
[420947470,1776781838708,-235.75327194,0.00010293,2]
[420947471,1776781838718,-187.34186025,0.00010293,2]
[420947472,1776781838727,-1000.0,0.00010407,2]
[420947473,1776781838736,-488.97575034,0.0001041,2]
[420947475,1776781838746,-1588.8184636,0.00010555,2]
[420947477,1776781838756,-4254.513,0.0001057,2]
[420947479,1776781838765,-315.925,0.0001057,2]
[420947481,1776781838775,-1100.0,0.000107,3]
[420947483,1776781838784,-463.46739312,0.00010704,2]
[420947485,1776781838793,-1117.0,0.00010779,2]
[420947487,1776781838802,-5000.0,0.000108,2]
[420947489,1776781838810,-2300.0,0.000108,3]
[420947491,1776781838820,-665.48971028,0.00010841,2]
[420947492,1776781838829,-181.08010149,0.00010841,2]
[420947494,1776781838839,-200.0,0.00010849,2]
[420947496,1776781838848,-250.0,0.00010849,2]
[420947498,1776781838858,-200.0,0.00010849,2]
[420947500,1776781838867,-12688.5365655,0.00010883,2]
[420947502,1776781838876,-172.5014156,0.00010883,2]
[420947504,1776781838885,-675.023612,0.00010883,2]
[420947507,1776781838898,-230.0796981,0.00010883,2]
[420947509,1776781838907,-1596.0589635,0.00010883,2]
[420947512,1776781838925,-405.89359579,0.00010883,2]
[420947560,1776781840280,-1877.50073821,0.00010883,2]
[420947561,1776781840289,-200.0,0.00010898,2]
[420947562,1776781840299,-151.0,0.00010898,2]
[420947563,1776781840308,-1185480.79706851,0.000109,2]
[420947564,1776781840459,-231709.83719437,0.000109,2]
[420947565,1776781840514,-4674.1142066,0.000109,2]
[420947566,1776781840677,-921431.59462418,0.000109,2]
[420947567,1776781840736,-583.18068344,0.000109,2]
[420947594,1776781846090,-308.97826208,0.00010704,2]
[420947595,1776781846100,-17056.74180772,0.000109,2]
[420947596,1776781846111,-665.49581512,0.000109,2]
[420947597,1776781846123,-313.20003256,0.000109,2]
[420947598,1776781846139,-168887.36987976,0.000109,2]
[420947599,1776781846190,-1961.893975,0.000109,2]
[420947600,1776781846210,-427757.60172946,0.000109,2]
[420947601,1776781846274,-3547.43151558,0.000109,2]
[420947607,1776782964123,-1116.99999999,8.28e-05,2]
[420947608,1776782964145,-500.0,8.439e-05,2]
[420947609,1776782964167,-500.0,8.582e-05,2]
[420947610,1776782964191,-500.0,8.582e-05,2]
[420947611,1776782964212,-500.0,8.582e-05,2]
[420947612,1776782964236,-1600.0,8.598e-05,2]
[420947613,1776782964257,-195.16422509,8.657e-05,2]
[420947614,1776782964279,-687.77970492,8.687e-05,2]
[420947615,1776783027053,500.0,8.144e-05,2]
[420947635,1776783032732,-151.76,8.407e-05,2]
[420947637,1776783032742,-500.0,8.547e-05,2]
[420947639,1776783032752,-500.0,8.673e-05,2]
[420947641,1776783032761,-500.0,8.673e-05,2]
[420947643,1776783032771,-417.35136202,8.687e-05,2]
[420947645,1776783032780,-1117.0,8.716e-05,2]
[420947646,1776783032790,-217.81,8.753e-05,2]
[420947647,1776783032799,-156.22,8.8e-05,2]
[420947648,1776783032809,-2000.0,8.82e-05,2]
[420947649,1776783032818,-500.0,8.823e-05,2]
[420947650,1776783032829,-300.0,8.844e-05,2]
[420947651,1776783032838,-1200.0,8.844e-05,2]
[420947652,1776783032848,-9729.27070741,8.845e-05,2]
[420947653,1776783032868,-499.50294632,8.845e-05,2]
[420947654,1776783032880,-1878152.42844627,8.845e-05,2]
[420947655,1776783032889,-150.0,8.944e-05,2]
[420947656,1776783032899,-14130.61,8.945e-05,2]
[420947657,1776783032908,-999.99,8.945e-05,2]
[420947658,1776783032919,-9999.99,8.945e-05,2]
[420947659,1776783032929,-9999.99,8.945e-05,2]
[420947660,1776783032939,-150.99,8.945e-05,2]
[420947661,1776783032948,-299.99,8.945e-05,2]
[420947662,1776783032958,-2074.07,8.945e-05,2]
[420947663,1776783032968,-500.0,8.953e-05,2]
[420947664,1776783032978,-500.62439048,8.953e-05,2]
[420947665,1776783032988,-500.0,8.953e-05,2]
[420947666,1776783032998,-637.99582549,8.953e-05,2]
[420947667,1776783033007,-500.0,8.973e-05,2]
[420947668,1776783033016,-150.0,8.974e-05,2]
[420947669,1776783033025,-500.0,8.974e-05,2]
[420947670,1776783033037,-349.8877857,8.974e-05,2]
[420947671,1776783033047,-500.0,8.974e-05,2]
[420947672,1776783033056,-500.0,8.974e-05,2]
[420947673,1776783033067,-463.89349414,8.974e-05,2]
[420947674,1776783033077,-260.5497955,8.974e-05,2]
[420947675,1776783033092,-500.0,8.974e-05,2]
[420947676,1776783033102,-500.0,8.974e-05,2]
[420947677,1776783033116,-500.0,8.974e-05,2]
[420947678,1776783033126,-553.27490583,8.974e-05,2]
[420947679,1776783033136,-500.0,8.974e-05,2]
[420947680,1776783033146,-500.0,8.974e-05,2]
[420947681,1776783033155,-213.98858696,8.974e-05,2]
[420947682,1776783033165,-500.0,8.974e-05,2]
[420947683,1776783033175,-176.32444388,8.974e-05,2]
[420947684,1776783033184,-181.84680563,8.974e-05,2]
[420947685,1776783033193,-500.0,8.974e-05,2]
[420947686,1776783033202,-500.0,8.974e-05,2]
[420947687,1776783033212,-500.0,8.974e-05,2]
[420947688,1776783033221,-500.0,8.974e-05,2]
[420947689,1776783033230,-500.0,8.974e-05,2]
[420947690,1776783033239,-500.0,8.974e-05,2]
[420947691,1776783033248,-217.78754036,8.974e-05,2]
[420947692,1776783033258,-500.0,8.974e-05,2]
[420947693,1776783033266,-500.0,8.974e-05,2]
[420947694,1776783033276,-500.0,8.974e-05,2]
[420947695,1776783033289,-500.0,8.974e-05,2]
[420947696,1776783033298,-500.0,8.974e-05,2]
[420947697,1776783033308,-500.0,8.974e-05,2]
[420947698,1776783033317,-500.0,8.974e-05,2]
[420947699,1776783033327,-554.33705606,8.974e-05,2]
[420947700,1776783033336,-500.0,8.974e-05,2]
[420947701,1776783033345,-500.0,8.974e-05,2]
[420947702,1776783033354,-500.0,8.974e-05,2]
[420947703,1776783033364,-500.0,8.974e-05,2]
[420947704,1776783033373,-500.0,8.974e-05,2]
[420947705,1776783033382,-500.0,8.974e-05,2]
[420947706,1776783033392,-500.0,8.974e-05,2]
[420947707,1776783033401,-500.0,8.974e-05,2]
[420947708,1776783033411,-500.0,8.974e-05,2]
[420947709,1776783033420,-500.0,8.974e-05,2]
[420947710,1776783033430,-500.0,8.974e-05,2]
[420947711,1776783033439,-500.0,8.974e-05,2]
[420947712,1776783033448,-500.0,8.974e-05,2]
[420947713,1776783033458,-500.0,8.974e-05,2]
[420947714,1776783033467,-500.0,8.974e-05,2]
[420947715,1776783033476,-500.0,8.974e-05,2]
[420947716,1776783033486,-500.0,8.974e-05,2]
[420947717,1776783033495,-500.0,8.974e-05,2]
[420947718,1776783033508,-500.0,8.974e-05,2]
[420947719,1776783033517,-500.0,8.974e-05,2]
[420947720,1776783033527,-500.0,8.974e-05,2]
[420947721,1776783033538,-500.0,8.974e-05,2]
[420947722,1776783033547,-500.0,8.974e-05,2]
[420947723,1776783033558,-500.0,8.974e-05,2]
[420947724,1776783033567,-500.0,8.974e-05,2]
[420947725,1776783033577,-500.0,8.974e-05,2]
[420947726,1776783033586,-500.0,8.974e-05,2]
[420947727,1776783033596,-500.0,8.974e-05,2]
[420947728,1776783033606,-500.0,8.974e-05,2]
[420947729,1776783033616,-500.0,8.974e-05,2]
[420947730,1776783033625,-200.0,8.974e-05,2]
[420947731,1776783033635,-13005.4863,8.975e-05,2]
[420947732,1776783033644,-743483.59737634,8.975e-05,2]
[420947733,1776783033658,-83779.16916799,8.975e-05,2]
[420947734,1776783033670,-214318.86895424,8.975e-05,2]
[420947735,1776783033696,-756.18617286,8.975e-05,2]
[420947736,1776783033708,-332.7359301,8.975e-05,2]
[420947737,1776783033729,-8386.4612623,8.975e-05,2]
[420947738,1776783033756,-1610.89109739,8.975e-05,2]
[420947739,1776783038673,-16668.48345306,8.975e-05,2]
[420947740,1776783038689,-11890.46956227,8.975e-05,2]
[420947741,1776783038707,-501.70000008,8.975e-05,2]
[420947742,1776783038722,-542.46609112,8.975e-05,2]
[420947743,1776783038782,-4715.00000002,8.975e-05,2]
[420947744,1776783038797,-16205.59253223,8.975e-05,2]
[420947746,1776783038809,-210.5,9.013e-05,2]
[420947748,1776783038821,-4384.67929438,9.013e-05,2]
[420947749,1776783038833,-390.4354429,9.013e-05,2]
[420947750,1776783038846,-1395.43,9.03e-05,2]
[420947751,1776783038859,-253.13,9.03e-05,2]
[420947752,1776783038871,-10433.59052773,9.074e-05,2]
[420947753,1776783038883,-250.0,9.109e-05,2]
[420947754,1776783038895,-300.0,9.109e-05,2]
[420947755,1776783038907,-500.0,9.109e-05,2]
[420947756,1776783038920,-1117.0,9.175e-05,2]
[420947757,1776783038932,-500.0,9.248e-05,2]
[420947758,1776783038944,-151.12852573,9.293e-05,2]
[420947759,1776783038956,-500.0,9.293e-05,2]
[420947760,1776783038968,-500.0,9.293e-05,2]
[420947761,1776783038980,-232.26937202,9.293e-05,2]
[420947762,1776783038992,-500.0,9.293e-05,2]
[420947763,1776783039005,-500.0,9.293e-05,2]
[420947764,1776783039017,-500.0,9.293e-05,2]
[420947766,1776783039029,-500.0,9.293e-05,2]
[420947768,1776783039042,-500.0,9.293e-05,2]
[420947769,1776783039055,-500.0,9.293e-05,2]
[420947770,1776783039067,-500.0,9.293e-05,2]
[420947771,1776783039079,-500.0,9.293e-05,2]
[420947772,1776783039091,-150.0,9.293e-05,2]
[420947773,1776783039103,-500.0,9.293e-05,2]
[420947774,1776783039115,-150.0,9.293e-05,2]
[420947775,1776783039126,-222.40782259,9.293e-05,2]
[420947776,1776783039138,-500.0,9.293e-05,2]
[420947777,1776783039150,-500.0,9.293e-05,2]
[420947778,1776783039162,-150.0,9.293e-05,2]
[420947779,1776783039173,-290.87238876,9.293e-05,2]
[420947780,1776783039185,-150.0,9.293e-05,2]
[420947781,1776783039198,-1003.9209333,9.371e-05,2]
[420947782,1776783039210,-2500.0,9.468e-05,2]
[420947783,1776783039222,-1000.0,9.501e-05,2]
[420947784,1776783039234,-505.90227046,9.501e-05,2]
[420947785,1776783039246,-192.46,9.521e-05,2]
[420947786,1776783039259,-472.43,9.521e-05,2]
[420947787,1776783039271,-262.45,9.521e-05,2]
[420947788,1776783039285,-351.36,9.521e-05,2]
[420947789,1776783039297,-386.45,9.54e-05,2]
[420947790,1776783039309,-500.50479008,9.543e-05,2]
[420947791,1776783039321,-500.0,9.543e-05,2]
[420947792,1776783039333,-500.0,9.543e-05,2]
[420947793,1776783039345,-265.19023157,9.543e-05,2]
[420947794,1776783039357,-158.0,9.567e-05,2]
[420947795,1776783039369,-1117.0,9.658e-05,2]
[420947796,1776783039380,-1600.0,9.673e-05,2]
[420947797,1776783039392,-209.03489163,9.725e-05,2]
[420947798,1776783039404,-420.0,9.728e-05,2]
[420947799,1776783039416,-1680.0,9.728e-05,2]
[420947800,1776783039428,-151.76,9.808e-05,2]
[420947801,1776783039440,-255.0,9.838e-05,2]
[420947802,1776783039452,-158.0,9.841e-05,2]
[420947803,1776783039465,-260.0,9.863e-05,2]
[420947804,1776783039476,-151.44,9.891e-05,2]
[420947805,1776783039488,-500.0,9.892e-05,2]
[420947806,1776783039500,-500.0,9.892e-05,2]
[420947807,1776783039512,-500.0,9.892e-05,2]
[420947808,1776783039525,-500.0,9.892e-05,2]
[420947809,1776783039536,-632.65490177,9.892e-05,2]
[420947810,1776783039548,-2000.0,9.923e-05,2]
[420947811,1776783039561,-150.0,9.986e-05,2]
[420947812,1776783039573,-12567.03379092,0.0001,2]
[420947813,1776783039589,-31800.96620908,0.0001,2]
[420947814,1776783039601,-218.37,0.0001,2]
[420947815,1776783039613,-2924.43,0.0001,2]
[420947816,1776783039625,-1882.93,0.0001,2]
[420947817,1776783039637,-2751.91,0.0001,2]
[420947818,1776783039648,-200.04,0.0001,2]
[420947819,1776783039660,-200.04,0.0001,2]
[420947820,1776783039672,-200.0,0.0001,2]
[420947821,1776783039683,-500.0,0.0001,2]
[420947822,1776783039694,-500.0,0.0001,2]
[420947823,1776783039705,-500.0,0.0001,2]
[420947824,1776783039717,-500.0,0.0001,2]
[420947825,1776783039729,-324.58914921,0.0001,2]
[420947826,1776783039740,-1386.78395259,0.0001,2]
[420947827,1776783039751,-2002.45,0.0001,2]
[420947828,1776783039763,-670.53719559,0.0001,2]
[420947829,1776783039775,-1323.18330102,0.00010048,2]
[420947830,1776783039788,-562.2908788,0.00010091,2]
[420947831,1776783039799,-522.06145725,0.00010091,2]
[420947832,1776783039811,-22.90218613,0.00010115,2]
[420947833,1776783039825,-135.10781387,0.00010115,2]
[420947834,1776783039837,-1117.0,0.00010166,2]
[420947835,1776783039848,-574.03084773,0.000102,3]
[420947836,1776783039862,-2450.15674466,0.000102,3]
[420947838,1776783040442,-500.0,8.973e-05,2]
[420947839,1776783040453,-16315.15495775,9.013e-05,2]
[420947840,1776783040465,-500.0,9.247e-05,2]
[420947841,1776783040476,-638.9112917,0.0001,2]
[420947842,1776783040489,-2505.81240761,0.000102,3]
[420947843,1776783040500,-1747.3296849,0.00010257,2]
[420947844,1776783040511,-155.0,0.00010292,2]
[420947845,1776783040522,-578.20924308,0.00010293,2]
[420947846,1776783040534,-721.12765535,0.00010293,2]
[420947847,1776783040545,-209.40437684,0.00010293,2]
[420947848,1776783040557,-1428.38747117,0.00010293,2]
[420947849,1776783040569,-6888.00000001,0.00010293,2]
[420947850,1776783040580,-500.0,0.00010293,2]
[420947851,1776783040591,-200.0,0.00010293,2]
[420947852,1776783040602,-151.0,0.00010293,2]
[420947853,1776783040613,-771.01748645,0.00010293,2]
[420947854,1776783040624,-209.40437684,0.00010293,2]
[420947855,1776783040636,-2000.0,0.00010293,2]
[420947856,1776783040647,-2000.0,0.00010293,2]
[420947857,1776783040658,-2000.0,0.00010293,2]
[420947858,1776783040669,-2000.0,0.00010293,2]
[420947859,1776783040680,-152.21609209,0.00010293,2]
[420947860,1776783040691,-181.97608745,0.00010293,2]
[420947861,1776783040701,-693.3919763,0.00010293,2]
[420947862,1776783040713,-235.75327194,0.00010293,2]